[Event "Titled Tuesday Blitz November 07 Early 2023"]
[White "Derjabin, Ilja"]
[Black "Osinovsky, Stepan"]
[WhiteFideId "14104768"]
[BlackFideId "4157354"]
[WhiteElo "2554"]
[BlackElo "2407"]
[Result "1-0"]
[Round "6"]
[TimeControl "180+1"]
[Date "2023.11.07"]
[WhiteClock "0:00:10"]
[BlackClock "0:00:06"]
[Board "130"]

1. d4 {[%clk 0:03:00]}  Nf6 {[%clk 0:02:57]} 2. c4 {[%clk 0:03:01]}  g6 {[%clk 0:02:58]} 3. Nc3 {[%clk 0:02:58]}  Bg7 {[%clk 0:02:59]} 4. e4 {[%clk 0:02:58]}  O-O {[%clk 0:03:00]} 5. Nge2 {[%clk 0:02:58]}  d6 {[%clk 0:02:57]} 6. Ng3 {[%clk 0:02:57]}  e5 {[%clk 0:02:57]} 7. d5 {[%clk 0:02:57]}  c6 {[%clk 0:02:57]} 8. Be2 {[%clk 0:02:57]}  cxd5 {[%clk 0:02:57]} 9. cxd5 {[%clk 0:02:57]}  a6 {[%clk 0:02:58]} 10. a4 {[%clk 0:02:56]}  h5 {[%clk 0:02:54]} 11. Bg5 {[%clk 0:02:55]}  Qb6 {[%clk 0:02:51]} 12. O-O {[%clk 0:02:48]}  Qxb2 {[%clk 0:02:44]} 13. Qd3 {[%clk 0:02:44]}  Qb6 {[%clk 0:02:37]} 14. a5 {[%clk 0:02:40]}  Qd8 {[%clk 0:02:35]} 15. Na4 {[%clk 0:02:38]}  Qxa5 {[%clk 0:02:28]} 16. Be3 {[%clk 0:02:30]}  Nbd7 {[%clk 0:02:02]} 17. Nb6 {[%clk 0:02:23]}  Qxb6 {[%clk 0:02:02]} 18. Bxb6 {[%clk 0:02:23]}  Nxb6 {[%clk 0:02:03]} 19. Rfc1 {[%clk 0:02:14]}  Nbd7 {[%clk 0:01:50]} 20. f3 {[%clk 0:01:59]}  Nc5 {[%clk 0:01:50]} 21. Qa3 {[%clk 0:01:58]}  Bh6 {[%clk 0:01:44]} 22. Rcb1 {[%clk 0:01:57]}  Bd7 {[%clk 0:01:37]} 23. Rb6 {[%clk 0:01:55]}  Ne8 {[%clk 0:01:02]} 24. Nf1 {[%clk 0:01:50]}  Kh8 {[%clk 0:00:54]} 25. Kh1 {[%clk 0:01:49]}  Rg8 {[%clk 0:00:54]} 26. Ne3 {[%clk 0:01:49]}  Bf8 {[%clk 0:00:51]} 27. Nc4 {[%clk 0:01:44]}  Bb5 {[%clk 0:00:48]} 28. Rxb5 {[%clk 0:01:43]}  axb5 {[%clk 0:00:46]} 29. Qxa8 {[%clk 0:01:42]}  bxc4 {[%clk 0:00:39]} 30. Qxe8 {[%clk 0:01:41]}  c3 {[%clk 0:00:38]} 31. Qxf7 {[%clk 0:01:39]}  Bh6 {[%clk 0:00:38]} 32. Qf6+ {[%clk 0:01:35]}  Kh7 {[%clk 0:00:34]} 33. Qxd6 {[%clk 0:01:35]}  Nb3 {[%clk 0:00:31]} 34. Qxe5 {[%clk 0:01:26]}  c2 {[%clk 0:00:25]} 35. Qc7+ {[%clk 0:01:20]}  Bg7 {[%clk 0:00:20]} 36. Qxc2 {[%clk 0:01:18]}  Nxa1 {[%clk 0:00:19]} 37. Qa4 {[%clk 0:01:15]}  Rc8 {[%clk 0:00:18]} 38. g3 {[%clk 0:01:02]}  Nc2 {[%clk 0:00:18]} 39. Qd7 {[%clk 0:00:58]}  Rc3 {[%clk 0:00:17]} 40. e5 {[%clk 0:00:26]}  Ne3 {[%clk 0:00:15]} 41. Kg1 {[%clk 0:00:22]}  Rc2 {[%clk 0:00:14]} 42. Kf2 {[%clk 0:00:21]}  Nd1+ {[%clk 0:00:14]} 43. Ke1 {[%clk 0:00:21]}  Nb2 {[%clk 0:00:13]} 44. e6 {[%clk 0:00:18]}  Rc1+ {[%clk 0:00:12]} 45. Kf2 {[%clk 0:00:18]}  Kh6 {[%clk 0:00:11]} 46. e7 {[%clk 0:00:14]}  Bd4+ {[%clk 0:00:10]} 47. Kg2 {[%clk 0:00:14]}  Nc4 {[%clk 0:00:10]} 48. e8=Q {[%clk 0:00:11]}  Ne3+ {[%clk 0:00:10]} 49. Kh3 {[%clk 0:00:10]}  Nf5 {[%clk 0:00:08]} 50. Qf8+ {[%clk 0:00:10]}  Bg7 {[%clk 0:00:08]} 51. Qdxf5 {[%clk 0:00:10]}  gxf5 {[%clk 0:00:08]} 52. Qxf5 {[%clk 0:00:10]}  Rg1 {[%clk 0:00:07]} 53. Bd3 {[%clk 0:00:09]}  Rxg3+ {[%clk 0:00:05]} 54. hxg3 {[%clk 0:00:09]}  Bf6 {[%clk 0:00:06]} 55. Qg6# {[%clk 0:00:10]} 1-0


[Site "https://www.chess.com"]

[Event "Titled Tuesday Blitz November 07 Early 2023"]
[White "Begunov, Konstantin"]
[Black "Czopor, Maciej"]
[WhiteFideId "4118510"]
[BlackFideId "21805431"]
[WhiteElo "2406"]
[BlackElo "2529"]
[Result "0-1"]
[Round "6"]
[TimeControl "180+1"]
[Date "2023.11.07"]
[WhiteClock "0:00:08"]
[BlackClock "0:00:44"]
[Board "132"]

1. d4 {[%clk 0:02:52]}  g6 {[%clk 0:02:59]} 2. c4 {[%clk 0:02:51]}  Bg7 {[%clk 0:02:59]} 3. Nc3 {[%clk 0:02:52]}  d6 {[%clk 0:03:00]} 4. e4 {[%clk 0:02:52]}  Nd7 {[%clk 0:03:00]} 5. Be3 {[%clk 0:02:52]}  e5 {[%clk 0:03:01]} 6. Nge2 {[%clk 0:02:51]}  Ne7 {[%clk 0:03:01]} 7. Qd2 {[%clk 0:02:51]}  O-O {[%clk 0:03:01]} 8. f3 {[%clk 0:02:50]}  f5 {[%clk 0:03:01]} 9. d5 {[%clk 0:02:37]}  a5 {[%clk 0:02:54]} 10. O-O-O {[%clk 0:02:32]}  a4 {[%clk 0:02:47]} 11. Kb1 {[%clk 0:02:30]}  Nc5 {[%clk 0:02:45]} 12. Nc1 {[%clk 0:02:24]}  Bd7 {[%clk 0:02:44]} 13. Nd3 {[%clk 0:02:17]}  b6 {[%clk 0:02:42]} 14. Rc1 {[%clk 0:02:06]}  h5 {[%clk 0:02:38]} 15. Nxc5 {[%clk 0:01:58]}  bxc5 {[%clk 0:02:38]} 16. Bd3 {[%clk 0:01:56]}  a3 {[%clk 0:02:21]} 17. b3 {[%clk 0:01:49]}  f4 {[%clk 0:02:21]} 18. Bf2 {[%clk 0:01:47]}  g5 {[%clk 0:02:19]} 19. h3 {[%clk 0:01:37]}  Rf6 {[%clk 0:02:16]} 20. Ka1 {[%clk 0:01:36]}  Ng6 {[%clk 0:02:06]} 21. Rb1 {[%clk 0:01:27]}  Rb8 {[%clk 0:02:03]} 22. Nb5 {[%clk 0:01:25]}  c6 {[%clk 0:01:59]} 23. dxc6 {[%clk 0:01:15]}  Bxc6 {[%clk 0:02:00]} 24. Nxa3 {[%clk 0:01:15]}  Nf8 {[%clk 0:01:56]} 25. Nb5 {[%clk 0:01:14]}  Ne6 {[%clk 0:01:56]} 26. Nc3 {[%clk 0:00:52]}  Rf7 {[%clk 0:01:54]} 27. Nd5 {[%clk 0:00:49]}  Ra7 {[%clk 0:01:54]} 28. b4 {[%clk 0:00:40]}  Rba8 {[%clk 0:01:47]} 29. Rb2 {[%clk 0:00:39]}  Ra3 {[%clk 0:01:43]} 30. b5 {[%clk 0:00:34]}  Bb7 {[%clk 0:01:44]} 31. Rc1 {[%clk 0:00:30]}  Kf7 {[%clk 0:01:43]} 32. Rc3 {[%clk 0:00:29]}  R3a5 {[%clk 0:01:40]} 33. Bc2 {[%clk 0:00:27]}  Nd4 {[%clk 0:01:38]} 34. Bd1 {[%clk 0:00:26]}  Bh6 {[%clk 0:01:23]} 35. Kb1 {[%clk 0:00:25]}  Qh8 {[%clk 0:01:21]} 36. Nc7 {[%clk 0:00:19]}  Rc8 {[%clk 0:01:18]} 37. Nd5 {[%clk 0:00:19]}  Ra7 {[%clk 0:01:13]} 38. a4 {[%clk 0:00:18]}  g4 {[%clk 0:01:11]} 39. hxg4 {[%clk 0:00:18]}  hxg4 {[%clk 0:01:09]} 40. Ra3 {[%clk 0:00:17]}  Bg5 {[%clk 0:01:04]} 41. a5 {[%clk 0:00:17]}  Qh1 {[%clk 0:01:01]} 42. Ka2 {[%clk 0:00:16]}  Qf1 {[%clk 0:00:57]} 43. a6 {[%clk 0:00:15]}  Bxd5 {[%clk 0:00:56]} 44. exd5 {[%clk 0:00:14]}  Qxc4+ {[%clk 0:00:51]} 45. Bb3 {[%clk 0:00:13]}  Qxb5 {[%clk 0:00:49]} 46. Bxd4 {[%clk 0:00:12]}  Rxa6 {[%clk 0:00:46]} 47. Bc3 {[%clk 0:00:10]}  Rxa3+ {[%clk 0:00:44]} 48. Kxa3 {[%clk 0:00:11]}  Ra8+ {[%clk 0:00:44]} 49. Ba5 {[%clk 0:00:10]}  Rxa5+ {[%clk 0:00:44]} 50. Ba4 {[%clk 0:00:08]}  Qxa4# {[%clk 0:00:44]} 0-1


[Site "https://www.chess.com"]

[Event "Titled Tuesday Blitz November 07 Early 2023"]
[White "Goldin, Roman"]
[Black "Kotlyar, Kirill"]
[WhiteFideId "2803860"]
[BlackFideId "24145599"]
[WhiteElo "2395"]
[BlackElo "2523"]
[Result "0-1"]
[Round "6"]
[TimeControl "180+1"]
[Date "2023.11.07"]
[WhiteClock "0:00:03"]
[BlackClock "0:00:08"]
[Board "133"]

1. d4 {[%clk 0:03:00]}  Nf6 {[%clk 0:02:58]} 2. Nf3 {[%clk 0:02:59]}  c5 {[%clk 0:02:58]} 3. d5 {[%clk 0:02:59]}  e6 {[%clk 0:02:59]} 4. c4 {[%clk 0:02:58]}  exd5 {[%clk 0:02:59]} 5. cxd5 {[%clk 0:02:58]}  d6 {[%clk 0:03:00]} 6. Nc3 {[%clk 0:02:58]}  g6 {[%clk 0:03:00]} 7. Bf4 {[%clk 0:02:52]}  a6 {[%clk 0:02:56]} 8. a4 {[%clk 0:02:49]}  Bg7 {[%clk 0:02:54]} 9. h3 {[%clk 0:02:49]}  O-O {[%clk 0:02:50]} 10. e3 {[%clk 0:02:49]}  Re8 {[%clk 0:02:47]} 11. Be2 {[%clk 0:02:46]}  Nbd7 {[%clk 0:02:24]} 12. Bxd6 {[%clk 0:02:33]}  Qb6 {[%clk 0:02:21]} 13. Bh2 {[%clk 0:02:18]}  Qxb2 {[%clk 0:02:18]} 14. Rc1 {[%clk 0:02:18]}  Ng4 {[%clk 0:02:15]} 15. hxg4 {[%clk 0:02:14]}  Bxc3+ {[%clk 0:02:15]} 16. Kf1 {[%clk 0:02:14]}  Bg7 {[%clk 0:02:11]} 17. Nd2 {[%clk 0:01:56]}  Ne5 {[%clk 0:01:38]} 18. Bxe5 {[%clk 0:01:39]}  Qxe5 {[%clk 0:01:36]} 19. Nc4 {[%clk 0:01:37]}  Qf6 {[%clk 0:01:26]} 20. a5 {[%clk 0:01:17]}  Bd7 {[%clk 0:01:25]} 21. Nb6 {[%clk 0:01:05]}  Rad8 {[%clk 0:01:25]} 22. Rxc5 {[%clk 0:00:59]}  Rxe3 {[%clk 0:01:00]} 23. Nxd7 {[%clk 0:00:45]}  Rxd7 {[%clk 0:01:01]} 24. Rc8+ {[%clk 0:00:43]}  Bf8 {[%clk 0:01:00]} 25. Qd2 {[%clk 0:00:33]}  Ra3 {[%clk 0:00:27]} 26. Bf3 {[%clk 0:00:31]}  Ra1+ {[%clk 0:00:17]} 27. Rc1 {[%clk 0:00:30]}  Bb4 {[%clk 0:00:10]} 28. Qc2 {[%clk 0:00:16]}  Re7 {[%clk 0:00:08]} 29. Bd1 {[%clk 0:00:03]}  Re1# {[%clk 0:00:08]} 0-1


[Site "https://www.chess.com"]

[Event "Titled Tuesday Blitz November 07 Early 2023"]
[White "Horak, Martin"]
[Black "Marcziter, Dmitrii"]
[WhiteFideId "367095"]
[BlackFideId "13900765"]
[WhiteElo "2519"]
[BlackElo "2394"]
[Result "1/2-1/2"]
[Round "6"]
[TimeControl "180+1"]
[Date "2023.11.07"]
[WhiteClock "0:00:10"]
[BlackClock "0:00:07"]
[Board "134"]

1. e4 {[%clk 0:03:00]}  c5 {[%clk 0:02:59]} 2. Nf3 {[%clk 0:03:00]}  a6 {[%clk 0:03:00]} 3. c4 {[%clk 0:02:59]}  e6 {[%clk 0:02:59]} 4. d4 {[%clk 0:02:58]}  cxd4 {[%clk 0:02:59]} 5. Nxd4 {[%clk 0:02:58]}  Nf6 {[%clk 0:03:00]} 6. Bd3 {[%clk 0:02:58]}  Bc5 {[%clk 0:02:58]} 7. Nb3 {[%clk 0:02:53]}  Be7 {[%clk 0:02:58]} 8. O-O {[%clk 0:02:53]}  d6 {[%clk 0:02:58]} 9. Nc3 {[%clk 0:02:54]}  O-O {[%clk 0:02:57]} 10. Qe2 {[%clk 0:02:52]}  Qc7 {[%clk 0:02:57]} 11. Be3 {[%clk 0:02:49]}  b6 {[%clk 0:02:56]} 12. Rac1 {[%clk 0:02:46]}  Bb7 {[%clk 0:02:56]} 13. f4 {[%clk 0:02:43]}  Nbd7 {[%clk 0:02:55]} 14. Rfd1 {[%clk 0:02:39]}  Rac8 {[%clk 0:02:53]} 15. Kh1 {[%clk 0:02:30]}  Qb8 {[%clk 0:02:52]} 16. Bg1 {[%clk 0:02:25]}  Rfe8 {[%clk 0:02:50]} 17. Re1 {[%clk 0:02:22]}  e5 {[%clk 0:02:45]} 18. Nd5 {[%clk 0:01:56]}  Bxd5 {[%clk 0:02:31]} 19. exd5 {[%clk 0:01:56]}  Bf8 {[%clk 0:02:25]} 20. Qf3 {[%clk 0:01:49]}  g6 {[%clk 0:02:17]} 21. Rc2 {[%clk 0:01:29]}  Bg7 {[%clk 0:02:16]} 22. Rce2 {[%clk 0:01:29]}  b5 {[%clk 0:02:14]} 23. cxb5 {[%clk 0:01:26]}  axb5 {[%clk 0:02:13]} 24. Na5 {[%clk 0:01:24]}  Qa8 {[%clk 0:02:01]} 25. b4 {[%clk 0:01:19]}  Qxd5 {[%clk 0:01:56]} 26. Qxd5 {[%clk 0:01:11]}  Nxd5 {[%clk 0:01:54]} 27. Bxb5 {[%clk 0:01:07]}  Red8 {[%clk 0:01:39]} 28. Nb7 {[%clk 0:00:57]}  Nxf4 {[%clk 0:01:37]} 29. Rd2 {[%clk 0:00:52]}  Rf8 {[%clk 0:01:15]} 30. Bxd7 {[%clk 0:00:48]}  Rc7 {[%clk 0:01:15]} 31. Rxd6 {[%clk 0:00:43]}  Rxb7 {[%clk 0:01:15]} 32. b5 {[%clk 0:00:43]}  Rd8 {[%clk 0:01:12]} 33. Red1 {[%clk 0:00:43]}  Bf8 {[%clk 0:01:05]} 34. R6d2 {[%clk 0:00:35]}  Bb4 {[%clk 0:00:59]} 35. Bc6 {[%clk 0:00:32]}  Rxd2 {[%clk 0:00:40]} 36. Rxd2 {[%clk 0:00:32]}  Bxd2 {[%clk 0:00:34]} 37. Bxb7 {[%clk 0:00:32]}  Ne2 {[%clk 0:00:33]} 38. Bc5 {[%clk 0:00:28]}  Nc3 {[%clk 0:00:26]} 39. b6 {[%clk 0:00:28]}  Na4 {[%clk 0:00:24]} 40. Bd6 {[%clk 0:00:17]}  Nxb6 {[%clk 0:00:19]} 41. Bxe5 {[%clk 0:00:17]}  Nc4 {[%clk 0:00:17]} 42. Bd4 {[%clk 0:00:16]}  Kf8 {[%clk 0:00:14]} 43. Bc6 {[%clk 0:00:16]}  Ke7 {[%clk 0:00:14]} 44. Bd5 {[%clk 0:00:16]}  Nd6 {[%clk 0:00:13]} 45. Bc5 {[%clk 0:00:16]}  Kd7 {[%clk 0:00:13]} 46. a4 {[%clk 0:00:15]}  Ba5 {[%clk 0:00:12]} 47. h4 {[%clk 0:00:14]}  f5 {[%clk 0:00:12]} 48. Kh2 {[%clk 0:00:13]}  Ne4 {[%clk 0:00:11]} 49. Bd4 {[%clk 0:00:13]}  Bc7+ {[%clk 0:00:11]} 50. Kg1 {[%clk 0:00:12]}  Kd6 {[%clk 0:00:11]} 51. Bxe4 {[%clk 0:00:12]}  fxe4 {[%clk 0:00:11]} 52. Kf2 {[%clk 0:00:12]}  Kd5 {[%clk 0:00:11]} 53. Ke3 {[%clk 0:00:13]}  Ba5 {[%clk 0:00:09]} 54. Ba7 {[%clk 0:00:12]}  Bd8 {[%clk 0:00:10]} 55. g3 {[%clk 0:00:11]}  Bc7 {[%clk 0:00:10]} 56. g4 {[%clk 0:00:12]}  Bd8 {[%clk 0:00:09]} 57. h5 {[%clk 0:00:13]}  gxh5 {[%clk 0:00:09]} 58. gxh5 {[%clk 0:00:13]}  Bc7 {[%clk 0:00:09]} 59. Ke2 {[%clk 0:00:11]}  Ba5 {[%clk 0:00:09]} 60. Ke3 {[%clk 0:00:11]}  Ke5 {[%clk 0:00:09]} 61. Bd4+ {[%clk 0:00:10]}  Kf5 {[%clk 0:00:10]} 62. Ke2 {[%clk 0:00:09]}  Kg5 {[%clk 0:00:10]} 63. Ke3 {[%clk 0:00:07]}  Kf5 {[%clk 0:00:09]} 64. Bc5 {[%clk 0:00:07]}  Kg5 {[%clk 0:00:09]} 65. Kxe4 {[%clk 0:00:07]}  Kxh5 {[%clk 0:00:09]} 66. Kd5 {[%clk 0:00:08]}  Kg4 {[%clk 0:00:10]} 67. Kc6 {[%clk 0:00:08]}  h5 {[%clk 0:00:10]} 68. Kb5 {[%clk 0:00:08]}  Bc7 {[%clk 0:00:09]} 69. Bb6 {[%clk 0:00:08]}  Bb8 {[%clk 0:00:09]} 70. a5 {[%clk 0:00:07]}  h4 {[%clk 0:00:08]} 71. Bg1 {[%clk 0:00:06]}  Kg3 {[%clk 0:00:07]} 72. Kc6 {[%clk 0:00:06]}  Kg2 {[%clk 0:00:07]} 73. Kb7 {[%clk 0:00:05]}  Kxg1 {[%clk 0:00:07]} 74. Kxb8 {[%clk 0:00:06]}  h3 {[%clk 0:00:07]} 75. a6 {[%clk 0:00:07]}  h2 {[%clk 0:00:05]} 76. a7 {[%clk 0:00:08]}  h1=Q {[%clk 0:00:06]} 77. a8=Q {[%clk 0:00:09]}  Qh2+ {[%clk 0:00:06]} 78. Kb7 {[%clk 0:00:08]}  Qg2+ {[%clk 0:00:07]} 79. Ka7 {[%clk 0:00:09]}  Qxa8+ {[%clk 0:00:07]} 80. Kxa8 {[%clk 0:00:10]} 1/2-1/2


[Site "https://www.chess.com"]

[Event "Titled Tuesday Blitz November 07 Early 2023"]
[White "Lymar, Vladislav"]
[Black "UK_23"]
[WhiteFideId "14162180"]
[WhiteElo "2516"]
[BlackElo "2393"]
[Result "1-0"]
[Round "6"]
[TimeControl "180+1"]
[Date "2023.11.07"]
[WhiteClock "0:00:22"]
[BlackClock "0:01:21"]
[Board "135"]

1. d4 {[%clk 0:03:00]}  d5 {[%clk 0:02:59]} 2. c4 {[%clk 0:03:01]}  e6 {[%clk 0:03:00]} 3. cxd5 {[%clk 0:03:01]}  exd5 {[%clk 0:02:59]} 4. Bf4 {[%clk 0:03:02]}  Nf6 {[%clk 0:02:59]} 5. e3 {[%clk 0:03:02]}  Bd6 {[%clk 0:02:59]} 6. Bxd6 {[%clk 0:03:03]}  Qxd6 {[%clk 0:03:00]} 7. Bd3 {[%clk 0:03:04]}  Nc6 {[%clk 0:03:00]} 8. Nc3 {[%clk 0:03:02]}  O-O {[%clk 0:02:53]} 9. Rc1 {[%clk 0:03:02]}  a6 {[%clk 0:02:44]} 10. h3 {[%clk 0:02:57]}  Ne7 {[%clk 0:02:42]} 11. Nf3 {[%clk 0:02:57]}  Bf5 {[%clk 0:02:41]} 12. O-O {[%clk 0:02:56]}  Bxd3 {[%clk 0:02:40]} 13. Qxd3 {[%clk 0:02:57]}  c6 {[%clk 0:02:40]} 14. Ne5 {[%clk 0:02:51]}  Nd7 {[%clk 0:02:40]} 15. f4 {[%clk 0:02:48]}  f6 {[%clk 0:02:37]} 16. Nf3 {[%clk 0:02:43]}  Rae8 {[%clk 0:02:35]} 17. Na4 {[%clk 0:02:39]}  Qe6 {[%clk 0:02:33]} 18. Rfe1 {[%clk 0:02:35]}  Nf5 {[%clk 0:02:31]} 19. g4 {[%clk 0:02:30]}  Nd6 {[%clk 0:02:25]} 20. Nc5 {[%clk 0:02:18]}  Nxc5 {[%clk 0:02:25]} 21. Rxc5 {[%clk 0:02:17]}  Ne4 {[%clk 0:02:23]} 22. Rc2 {[%clk 0:02:15]}  h5 {[%clk 0:02:21]} 23. Rg2 {[%clk 0:02:09]}  hxg4 {[%clk 0:02:19]} 24. hxg4 {[%clk 0:02:10]}  Kf7 {[%clk 0:02:18]} 25. f5 {[%clk 0:01:52]}  Qd6 {[%clk 0:02:15]} 26. Nh4 {[%clk 0:01:51]}  Ng5 {[%clk 0:02:11]} 27. Ree2 {[%clk 0:01:09]}  Re4 {[%clk 0:02:03]} 28. Ng6 {[%clk 0:01:01]}  Rfe8 {[%clk 0:02:03]} 29. Qb3 {[%clk 0:00:57]}  b5 {[%clk 0:01:55]} 30. a4 {[%clk 0:00:42]}  Nf3+ {[%clk 0:01:40]} 31. Kf1 {[%clk 0:00:35]}  Nh2+ {[%clk 0:01:22]} 32. Rxh2 {[%clk 0:00:22]}  Qxh2 {[%clk 0:01:21]} 33. Rxh2 {[%clk 0:00:22]} 1-0


[Site "https://www.chess.com"]

[Event "Titled Tuesday Blitz November 07 Early 2023"]
[White "Dmitrenko, Viktor"]
[Black "HeroRubiksCube"]
[WhiteFideId "14110270"]
[WhiteElo "2390"]
[BlackElo "2513"]
[Result "0-1"]
[Round "6"]
[TimeControl "180+1"]
[Date "2023.11.07"]
[WhiteClock "0:00:03"]
[BlackClock "0:00:17"]
[Board "136"]

1. e4 {[%clk 0:02:57]}  d5 {[%clk 0:02:59]} 2. exd5 {[%clk 0:02:57]}  Nf6 {[%clk 0:03:00]} 3. d4 {[%clk 0:02:52]}  Bg4 {[%clk 0:02:59]} 4. Nf3 {[%clk 0:02:35]}  Qxd5 {[%clk 0:02:59]} 5. Nc3 {[%clk 0:02:34]}  Qd8 {[%clk 0:02:54]} 6. h3 {[%clk 0:02:29]}  Bh5 {[%clk 0:02:46]} 7. g4 {[%clk 0:02:23]}  Bg6 {[%clk 0:02:46]} 8. Bg2 {[%clk 0:02:22]}  c6 {[%clk 0:02:41]} 9. Ne5 {[%clk 0:02:19]}  Nbd7 {[%clk 0:02:37]} 10. f4 {[%clk 0:02:15]}  e6 {[%clk 0:02:31]} 11. Be3 {[%clk 0:01:36]}  Nd5 {[%clk 0:02:23]} 12. Nxd5 {[%clk 0:01:31]}  cxd5 {[%clk 0:02:22]} 13. h4 {[%clk 0:01:22]}  Nxe5 {[%clk 0:02:21]} 14. dxe5 {[%clk 0:01:21]}  h5 {[%clk 0:02:16]} 15. gxh5 {[%clk 0:00:43]}  Bxh5 {[%clk 0:02:14]} 16. Bf3 {[%clk 0:00:43]}  Bxf3 {[%clk 0:02:06]} 17. Qxf3 {[%clk 0:00:43]}  Be7 {[%clk 0:02:07]} 18. O-O-O {[%clk 0:00:32]}  Qa5 {[%clk 0:02:06]} 19. Kb1 {[%clk 0:00:31]}  O-O-O {[%clk 0:02:01]} 20. h5 {[%clk 0:00:22]}  Kb8 {[%clk 0:01:54]} 21. Bd4 {[%clk 0:00:20]}  Qa4 {[%clk 0:01:30]} 22. b3 {[%clk 0:00:19]}  Qc6 {[%clk 0:01:25]} 23. f5 {[%clk 0:00:15]}  Rc8 {[%clk 0:01:24]} 24. Rh2 {[%clk 0:00:15]}  a5 {[%clk 0:01:05]} 25. a4 {[%clk 0:00:14]}  Qd7 {[%clk 0:00:58]} 26. fxe6 {[%clk 0:00:14]}  fxe6 {[%clk 0:00:58]} 27. Qd3 {[%clk 0:00:14]}  Rhf8 {[%clk 0:00:54]} 28. Rdd2 {[%clk 0:00:12]}  Rf5 {[%clk 0:00:51]} 29. Rdf2 {[%clk 0:00:09]}  Rcf8 {[%clk 0:00:47]} 30. Rxf5 {[%clk 0:00:09]}  Rxf5 {[%clk 0:00:48]} 31. Qd2 {[%clk 0:00:09]}  Bb4 {[%clk 0:00:46]} 32. Qd3 {[%clk 0:00:07]}  Qf7 {[%clk 0:00:43]} 33. Kb2 {[%clk 0:00:07]}  Rf3 {[%clk 0:00:36]} 34. Qb5 {[%clk 0:00:06]}  Qe7 {[%clk 0:00:23]} 35. h6 {[%clk 0:00:04]}  gxh6 {[%clk 0:00:22]} 36. Rxh6 {[%clk 0:00:04]}  Rf8 {[%clk 0:00:23]} 37. Qb6 {[%clk 0:00:04]}  Qc7 {[%clk 0:00:18]} 38. Qxe6 {[%clk 0:00:03]}  Rc8 {[%clk 0:00:17]} 39. c3 {[%clk 0:00:03]}  Bxc3+ {[%clk 0:00:17]} 40. Bxc3 {[%clk 0:00:02]}  Qxc3+ {[%clk 0:00:18]} 41. Ka3 {[%clk 0:00:03]}  Qa1# {[%clk 0:00:17]} 0-1


[Site "https://www.chess.com"]

[Event "Titled Tuesday Blitz November 07 Early 2023"]
[White "Mejia, Cherry Ann"]
[Black "Seletsky, Grigory"]
[WhiteFideId "5206880"]
[BlackFideId "14112191"]
[WhiteElo "2379"]
[BlackElo "2512"]
[Result "0-1"]
[Round "6"]
[TimeControl "180+1"]
[Date "2023.11.07"]
[WhiteClock "0:00:00"]
[BlackClock "0:00:34"]
[Board "137"]

1. e4 {[%clk 0:03:00]}  e6 {[%clk 0:02:59]} 2. d4 {[%clk 0:02:59]}  d5 {[%clk 0:02:58]} 3. e5 {[%clk 0:02:59]}  c5 {[%clk 0:02:57]} 4. c3 {[%clk 0:02:59]}  Nc6 {[%clk 0:02:57]} 5. g3 {[%clk 0:02:59]}  cxd4 {[%clk 0:02:53]} 6. cxd4 {[%clk 0:02:59]}  Qb6 {[%clk 0:02:53]} 7. Ne2 {[%clk 0:02:59]}  Nge7 {[%clk 0:02:53]} 8. Bh3 {[%clk 0:02:58]}  Bd7 {[%clk 0:02:45]} 9. Nbc3 {[%clk 0:02:58]}  Rc8 {[%clk 0:02:45]} 10. O-O {[%clk 0:02:57]}  g6 {[%clk 0:02:44]} 11. Be3 {[%clk 0:02:52]}  h5 {[%clk 0:02:41]} 12. Qd2 {[%clk 0:02:50]}  h4 {[%clk 0:02:29]} 13. g4 {[%clk 0:02:49]}  Na5 {[%clk 0:02:18]} 14. b3 {[%clk 0:02:48]}  Nec6 {[%clk 0:02:04]} 15. Rac1 {[%clk 0:02:47]}  Ba3 {[%clk 0:02:02]} 16. Rb1 {[%clk 0:02:45]}  Nb4 {[%clk 0:02:01]} 17. f4 {[%clk 0:02:39]}  Bb5 {[%clk 0:01:48]} 18. Nxb5 {[%clk 0:02:26]}  Qxb5 {[%clk 0:01:46]} 19. Nc3 {[%clk 0:02:26]}  Qd3 {[%clk 0:01:24]} 20. Qxd3 {[%clk 0:02:25]}  Nxd3 {[%clk 0:01:22]} 21. Nb5 {[%clk 0:02:25]}  Be7 {[%clk 0:01:20]} 22. Rfd1 {[%clk 0:02:22]}  Nb4 {[%clk 0:01:18]} 23. Bd2 {[%clk 0:02:01]}  Nac6 {[%clk 0:01:17]} 24. a3 {[%clk 0:01:49]}  a6 {[%clk 0:01:04]} 25. Nd6+ {[%clk 0:01:37]}  Bxd6 {[%clk 0:01:03]} 26. exd6 {[%clk 0:01:37]}  Nc2 {[%clk 0:01:02]} 27. Bc3 {[%clk 0:01:31]}  Nxa3 {[%clk 0:01:01]} 28. Rbc1 {[%clk 0:01:26]}  Nb5 {[%clk 0:01:01]} 29. f5 {[%clk 0:01:20]}  Nxd6 {[%clk 0:00:44]} 30. fxe6 {[%clk 0:01:20]}  fxe6 {[%clk 0:00:44]} 31. g5 {[%clk 0:01:20]}  Nf5 {[%clk 0:00:44]} 32. Bxf5 {[%clk 0:00:43]}  exf5 {[%clk 0:00:41]} 33. Kf2 {[%clk 0:00:32]}  Kd7 {[%clk 0:00:41]} 34. h3 {[%clk 0:00:27]}  Rce8 {[%clk 0:00:38]} 35. Re1 {[%clk 0:00:26]}  Re4 {[%clk 0:00:37]} 36. Rxe4 {[%clk 0:00:24]}  fxe4 {[%clk 0:00:36]} 37. Ke2 {[%clk 0:00:22]}  Rf8 {[%clk 0:00:35]} 38. Rg1 {[%clk 0:00:00]}  Rf3 {[%clk 0:00:34]} 0-1


[Site "https://www.chess.com"]